[Event "Titled Tuesday Blitz March 28 Early 2023"]
[White "Godzwon, Iwo"]
[Black "Avalos Parra, Joao"]
[WhiteFideId "21802483"]
[BlackFideId "3402541"]
[WhiteElo "2284"]
[BlackElo "2173"]
[Result "1-0"]
[Round "01"]
[TimeControl "180+2"]
[Date "2023.03.28"]
[WhiteClock "0:01:05"]
[BlackClock "0:00:18"]

1. e4 {[%clk 0:03:00]}  e5 {[%clk 0:03:00]} 2. Nf3 {[%clk 0:02:52]}  Nc6 {[%clk 0:03:00]} 3. Bb5 {[%clk 0:02:52]}  a6 {[%clk 0:03:00]} 4. Ba4 {[%clk 0:02:51]}  Nf6 {[%clk 0:03:00]} 5. O-O {[%clk 0:02:51]}  b5 {[%clk 0:03:00]} 6. Bb3 {[%clk 0:02:46]}  Bc5 {[%clk 0:03:00]} 7. a4 {[%clk 0:02:46]}  Rb8 {[%clk 0:02:58]} 8. axb5 {[%clk 0:02:46]}  axb5 {[%clk 0:02:58]} 9. Nxe5 {[%clk 0:02:47]}  Nxe5 {[%clk 0:02:56]} 10. d4 {[%clk 0:02:48]}  Bxd4 {[%clk 0:02:56]} 11. Qxd4 {[%clk 0:02:49]}  d6 {[%clk 0:02:57]} 12. f4 {[%clk 0:02:49]}  c5 {[%clk 0:02:43]} 13. Qc3 {[%clk 0:02:41]}  Ned7 {[%clk 0:02:43]} 14. e5 {[%clk 0:02:41]}  Ne4 {[%clk 0:02:43]} 15. Qe3 {[%clk 0:02:31]}  Bb7 {[%clk 0:02:42]} 16. Nd2 {[%clk 0:02:25]}  Nxd2 {[%clk 0:02:35]} 17. Bxd2 {[%clk 0:02:22]}  O-O {[%clk 0:02:28]} 18. exd6 {[%clk 0:02:16]}  c4 {[%clk 0:02:23]} 19. Ba2 {[%clk 0:02:16]}  Re8 {[%clk 0:02:23]} 20. Qd4 {[%clk 0:02:15]}  Re4 {[%clk 0:02:16]} 21. Qf2 {[%clk 0:02:13]}  Nf6 {[%clk 0:02:12]} 22. Rad1 {[%clk 0:02:08]}  Qxd6 {[%clk 0:01:48]} 23. Bc3 {[%clk 0:02:08]}  Qe6 {[%clk 0:01:45]} 24. Be5 {[%clk 0:02:08]}  Re8 {[%clk 0:01:41]} 25. Rd6 {[%clk 0:02:07]}  Qe7 {[%clk 0:01:39]} 26. Qg3 {[%clk 0:01:58]}  Nh5 {[%clk 0:00:49]} 27. Qg4 {[%clk 0:01:56]}  g6 {[%clk 0:00:32]} 28. Qd7 {[%clk 0:01:38]}  Qxd7 {[%clk 0:00:20]} 29. Rxd7 {[%clk 0:01:39]}  Bc6 {[%clk 0:00:20]} 30. Rd6 {[%clk 0:01:32]}  Ba8 {[%clk 0:00:18]} 31. h3 {[%clk 0:01:10]}  f6 {[%clk 0:00:19]} 32. Bc3 {[%clk 0:01:09]}  Nxf4 {[%clk 0:00:19]} 33. Rxf6 {[%clk 0:01:08]}  Ne2+ {[%clk 0:00:18]} 34. Kh2 {[%clk 0:01:09]}  Nxc3 {[%clk 0:00:19]} 35. bxc3 {[%clk 0:01:10]}  Re2 {[%clk 0:00:19]} 36. R6f2 {[%clk 0:01:10]}  Kg7 {[%clk 0:00:19]} 37. Bb1 {[%clk 0:01:08]}  Rxf2 {[%clk 0:00:19]} 38. Rxf2 {[%clk 0:01:08]}  Re1 {[%clk 0:00:19]} 39. Rd2 {[%clk 0:01:06]}  Rxb1 {[%clk 0:00:19]} 40. Rd7+ {[%clk 0:01:07]}  Kh6 {[%clk 0:00:19]} 41. Ra7 {[%clk 0:01:08]}  Be4 {[%clk 0:00:19]} 42. Re7 {[%clk 0:01:08]}  Bxc2 {[%clk 0:00:19]} 43. g4 {[%clk 0:01:08]}  Bd3 {[%clk 0:00:19]} 44. h4 {[%clk 0:01:08]}  Re1 {[%clk 0:00:18]} 45. Rxe1 {[%clk 0:01:07]}  Kg7 {[%clk 0:00:17]} 46. Re5 {[%clk 0:01:06]}  b4 {[%clk 0:00:16]} 47. cxb4 {[%clk 0:01:05]}  c3 {[%clk 0:00:17]} 48. Rc5 {[%clk 0:01:06]}  c2 {[%clk 0:00:17]} 49. Kg3 {[%clk 0:01:06]}  Kf6 {[%clk 0:00:17]} 50. Kf4 {[%clk 0:01:06]}  Ke6 {[%clk 0:00:18]} 51. Ke3 {[%clk 0:01:05]} 1-0


[Site "https://www.chess.com"]

[Event "Titled Tuesday Blitz March 28 Early 2023"]
[White "Zavortink, Matt"]
[Black "Sochacki, Christophe"]
[WhiteFideId "2034263"]
[BlackFideId "662569"]
[WhiteElo "2274"]
[BlackElo "2474"]
[Result "0-1"]
[Round "01"]
[TimeControl "180+2"]
[Date "2023.03.28"]
[WhiteClock "0:00:09"]
[BlackClock "0:00:18"]

1. c4 {[%clk 0:02:55]}  e5 {[%clk 0:02:57]} 2. Nc3 {[%clk 0:02:55]}  Nc6 {[%clk 0:02:50]} 3. Nf3 {[%clk 0:02:55]}  Bc5 {[%clk 0:02:40]} 4. e3 {[%clk 0:02:53]}  d6 {[%clk 0:02:37]} 5. d4 {[%clk 0:02:51]}  Bb6 {[%clk 0:02:31]} 6. b4 {[%clk 0:02:49]}  a5 {[%clk 0:02:15]} 7. b5 {[%clk 0:02:39]}  Nce7 {[%clk 0:02:08]} 8. dxe5 {[%clk 0:02:37]}  a4 {[%clk 0:01:57]} 9. exd6 {[%clk 0:02:31]}  cxd6 {[%clk 0:01:45]} 10. Be2 {[%clk 0:02:25]}  Nf6 {[%clk 0:01:41]} 11. O-O {[%clk 0:02:24]}  Be6 {[%clk 0:01:41]} 12. Nxa4 {[%clk 0:02:11]}  Bc7 {[%clk 0:01:37]} 13. Nd4 {[%clk 0:02:06]}  d5 {[%clk 0:01:26]} 14. c5 {[%clk 0:01:56]}  O-O {[%clk 0:01:22]} 15. Bb2 {[%clk 0:01:49]}  Nf5 {[%clk 0:01:22]} 16. Bf3 {[%clk 0:01:31]}  Qe7 {[%clk 0:01:01]} 17. Rc1 {[%clk 0:00:57]}  Nh4 {[%clk 0:01:01]} 18. b6 {[%clk 0:00:44]}  Bb8 {[%clk 0:00:54]} 19. c6 {[%clk 0:00:41]}  Nxf3+ {[%clk 0:00:52]} 20. Nxf3 {[%clk 0:00:41]}  bxc6 {[%clk 0:00:52]} 21. b7 {[%clk 0:00:37]}  Qxb7 {[%clk 0:00:49]} 22. Bxf6 {[%clk 0:00:36]}  gxf6 {[%clk 0:00:50]} 23. Nc5 {[%clk 0:00:34]}  Qe7 {[%clk 0:00:41]} 24. Rc2 {[%clk 0:00:25]}  Bg4 {[%clk 0:00:37]} 25. Qd4 {[%clk 0:00:24]}  h5 {[%clk 0:00:29]} 26. Rfc1 {[%clk 0:00:23]}  Be5 {[%clk 0:00:27]} 27. Qd3 {[%clk 0:00:15]}  Bd6 {[%clk 0:00:22]} 28. Qd4 {[%clk 0:00:13]}  Kh7 {[%clk 0:00:18]} 29. Kh1 {[%clk 0:00:13]}  Rg8 {[%clk 0:00:18]} 30. a4 {[%clk 0:00:10]}  Be5 {[%clk 0:00:19]} 31. Nxe5 {[%clk 0:00:10]}  fxe5 {[%clk 0:00:19]} 32. Qd3+ {[%clk 0:00:09]}  e4 {[%clk 0:00:18]} 33. Qd4 {[%clk 0:00:10]}  Qg5 {[%clk 0:00:18]} 34. Rg1 {[%clk 0:00:09]}  Bf3 {[%clk 0:00:18]} 0-1


[Site "https://www.chess.com"]

[Event "Titled Tuesday Blitz March 28 Early 2023"]
[White "Fajdetic, Hrvoje"]
[Black "Khumalo, Keith"]
[WhiteFideId "14501945"]
[BlackFideId "14319470"]
[WhiteElo "2185"]
[BlackElo "2056"]
[Result "1-0"]
[Round "01"]
[TimeControl "180+2"]
[Date "2023.03.28"]
[WhiteClock "0:00:33"]
[BlackClock "0:01:02"]

1. d4 {[%clk 0:02:57]}  Nf6 {[%clk 0:02:19]} 2. Bf4 {[%clk 0:02:56]}  c5 {[%clk 0:02:18]} 3. e3 {[%clk 0:02:56]}  Qb6 {[%clk 0:02:17]} 4. Na3 {[%clk 0:02:55]}  cxd4 {[%clk 0:02:17]} 5. exd4 {[%clk 0:02:55]}  d6 {[%clk 0:02:17]} 6. Nc4 {[%clk 0:02:51]}  Qd8 {[%clk 0:02:17]} 7. a4 {[%clk 0:02:50]}  g6 {[%clk 0:02:17]} 8. c3 {[%clk 0:02:49]}  Bg7 {[%clk 0:02:18]} 9. h3 {[%clk 0:02:47]}  O-O {[%clk 0:02:18]} 10. Nf3 {[%clk 0:02:47]}  b6 {[%clk 0:02:18]} 11. Bd3 {[%clk 0:02:40]}  Bb7 {[%clk 0:02:18]} 12. O-O {[%clk 0:02:38]}  a6 {[%clk 0:02:17]} 13. Qb3 {[%clk 0:02:37]}  Nbd7 {[%clk 0:02:17]} 14. Nfd2 {[%clk 0:02:31]}  Qc7 {[%clk 0:02:07]} 15. Rfe1 {[%clk 0:02:27]}  Rfe8 {[%clk 0:02:08]} 16. Re2 {[%clk 0:02:21]}  e5 {[%clk 0:02:06]} 17. Bh2 {[%clk 0:02:13]}  Qc6 {[%clk 0:01:52]} 18. f3 {[%clk 0:01:58]}  exd4 {[%clk 0:01:48]} 19. Nxd6 {[%clk 0:01:41]}  Nc5 {[%clk 0:01:44]} 20. Qxf7+ {[%clk 0:01:38]}  Kh8 {[%clk 0:01:40]} 21. Nxe8 {[%clk 0:01:31]}  Nxe8 {[%clk 0:01:40]} 22. Be4 {[%clk 0:01:23]}  Nxe4 {[%clk 0:01:39]} 23. Nxe4 {[%clk 0:01:12]}  h6 {[%clk 0:01:32]} 24. cxd4 {[%clk 0:01:04]}  Bxd4+ {[%clk 0:01:30]} 25. Kh1 {[%clk 0:01:04]}  Bg7 {[%clk 0:01:21]} 26. Rd1 {[%clk 0:00:56]}  Qxa4 {[%clk 0:01:10]} 27. Rd7 {[%clk 0:00:52]}  Bc6 {[%clk 0:01:08]} 28. Nf6 {[%clk 0:00:34]}  Bxd7 {[%clk 0:01:02]} 29. Qg8# {[%clk 0:00:33]} 1-0


[Site "https://www.chess.com"]

[Event "Titled Tuesday Blitz March 28 Early 2023"]
[White "Kim, Sergey"]
[Black "Ruge, Edison"]
[WhiteFideId "13700570"]
[BlackFideId "4401000"]
[WhiteElo "2617"]
[BlackElo "2175"]
[Result "1-0"]
[Round "01"]
[TimeControl "180+2"]
[Date "2023.03.28"]
[WhiteClock "0:00:56"]
[BlackClock "0:00:01"]

1. d4 {[%clk 0:02:59]}  Nf6 {[%clk 0:02:54]} 2. c4 {[%clk 0:02:59]}  g6 {[%clk 0:02:52]} 3. Nc3 {[%clk 0:02:59]}  Bg7 {[%clk 0:02:53]} 4. e4 {[%clk 0:02:58]}  d6 {[%clk 0:02:53]} 5. Nge2 {[%clk 0:02:58]}  c6 {[%clk 0:02:52]} 6. Ng3 {[%clk 0:02:58]}  h5 {[%clk 0:02:51]} 7. Be2 {[%clk 0:02:57]}  h4 {[%clk 0:02:49]} 8. Nf1 {[%clk 0:02:57]}  h3 {[%clk 0:02:49]} 9. g4 {[%clk 0:02:57]}  e5 {[%clk 0:02:45]} 10. d5 {[%clk 0:02:56]}  c5 {[%clk 0:02:43]} 11. Ng3 {[%clk 0:02:53]}  Rh4 {[%clk 0:02:39]} 12. f3 {[%clk 0:02:52]}  Rh8 {[%clk 0:02:35]} 13. Be3 {[%clk 0:02:48]}  Na6 {[%clk 0:02:31]} 14. Qd2 {[%clk 0:02:48]}  Nc7 {[%clk 0:02:28]} 15. a4 {[%clk 0:02:45]}  Bd7 {[%clk 0:02:24]} 16. O-O {[%clk 0:02:45]}  Na6 {[%clk 0:02:24]} 17. Kh1 {[%clk 0:02:44]}  Nb4 {[%clk 0:02:20]} 18. Bg5 {[%clk 0:02:37]}  Qc8 {[%clk 0:02:09]} 19. Nb5 {[%clk 0:02:37]}  Bxb5 {[%clk 0:02:06]} 20. axb5 {[%clk 0:02:36]}  Nd7 {[%clk 0:01:58]} 21. Ra3 {[%clk 0:02:21]}  a5 {[%clk 0:01:56]} 22. Rg1 {[%clk 0:02:05]}  f6 {[%clk 0:01:41]} 23. Be3 {[%clk 0:02:03]}  b6 {[%clk 0:01:41]} 24. Raa1 {[%clk 0:01:58]}  Qd8 {[%clk 0:01:37]} 25. Nf1 {[%clk 0:01:55]}  g5 {[%clk 0:01:29]} 26. Ng3 {[%clk 0:01:55]}  Nf8 {[%clk 0:01:26]} 27. Nf5 {[%clk 0:01:54]}  Qd7 {[%clk 0:01:18]} 28. Rg3 {[%clk 0:01:54]}  Ng6 {[%clk 0:01:13]} 29. Bf1 {[%clk 0:01:52]}  O-O-O {[%clk 0:01:03]} 30. Bxh3 {[%clk 0:01:51]}  Nf4 {[%clk 0:01:03]} 31. Bf1 {[%clk 0:01:50]}  Bf8 {[%clk 0:00:58]} 32. Rg1 {[%clk 0:01:29]}  Qh7 {[%clk 0:00:45]} 33. h4 {[%clk 0:01:25]}  Be7 {[%clk 0:00:20]} 34. Bxf4 {[%clk 0:01:23]}  exf4 {[%clk 0:00:18]} 35. h5 {[%clk 0:01:23]}  Bf8 {[%clk 0:00:18]} 36. Kg2 {[%clk 0:01:19]}  Re8 {[%clk 0:00:18]} 37. Rh1 {[%clk 0:01:19]}  Qd7 {[%clk 0:00:17]} 38. Bd3 {[%clk 0:01:18]}  Re5 {[%clk 0:00:17]} 39. Ra4 {[%clk 0:01:17]}  Be7 {[%clk 0:00:16]} 40. Rha1 {[%clk 0:01:15]}  Bd8 {[%clk 0:00:16]} 41. Be2 {[%clk 0:01:13]}  Rhe8 {[%clk 0:00:15]} 42. Bd1 {[%clk 0:01:12]}  Qh7 {[%clk 0:00:12]} 43. R1a3 {[%clk 0:01:12]}  Rxf5 {[%clk 0:00:12]} 44. gxf5 {[%clk 0:01:11]}  Qxh5 {[%clk 0:00:11]} 45. Qf2 {[%clk 0:01:03]}  Rh8 {[%clk 0:00:11]} 46. Kf1 {[%clk 0:01:03]}  Qh3+ {[%clk 0:00:09]} 47. Qg2 {[%clk 0:01:01]}  Qh4 {[%clk 0:00:09]} 48. Ke2 {[%clk 0:01:01]}  Qh2 {[%clk 0:00:05]} 49. Qxh2 {[%clk 0:01:00]}  Rxh2+ {[%clk 0:00:04]} 50. Kf1 {[%clk 0:01:00]}  Rxb2 {[%clk 0:00:03]} 51. Be2 {[%clk 0:00:58]}  Nc2 {[%clk 0:00:01]} 52. Ra2 {[%clk 0:00:57]}  Ne3+ {[%clk 0:00:02]} 53. Kf2 {[%clk 0:00:57]}  Rb1 {[%clk 0:00:02]} 54. Ra1 {[%clk 0:00:57]}  Rb2 {[%clk 0:00:02]} 55. R4a2 {[%clk 0:00:57]}  Rb4 {[%clk 0:00:01]} 56. Rh1 {[%clk 0:00:56]} 1-0


[Site "https://www.chess.com"]

[Event "Titled Tuesday Blitz March 28 Early 2023"]
[White "Demin, Vladimir"]
[Black "Schut, Han"]
[WhiteFideId "4167457"]
[BlackFideId "1005561"]
[WhiteElo "2605"]
[BlackElo "2024"]
[Result "1-0"]
[Round "01"]
[TimeControl "180+2"]
[Date "2023.03.28"]
[WhiteClock "0:00:33"]
[BlackClock "0:00:03"]

1. e4 {[%clk 0:03:00]}  c5 {[%clk 0:02:58]} 2. Nf3 {[%clk 0:03:00]}  d6 {[%clk 0:02:58]} 3. d4 {[%clk 0:02:59]}  cxd4 {[%clk 0:02:59]} 4. Qxd4 {[%clk 0:03:00]}  Nc6 {[%clk 0:02:58]} 5. Bb5 {[%clk 0:03:00]}  Bd7 {[%clk 0:02:58]} 6. Bxc6 {[%clk 0:03:00]}  Bxc6 {[%clk 0:02:59]} 7. Nc3 {[%clk 0:03:00]}  Nf6 {[%clk 0:02:52]} 8. Bg5 {[%clk 0:03:01]}  e6 {[%clk 0:02:52]} 9. O-O-O {[%clk 0:03:00]}  Be7 {[%clk 0:02:53]} 10. Qd3 {[%clk 0:03:01]}  O-O {[%clk 0:02:49]} 11. Nd4 {[%clk 0:03:00]}  Bd7 {[%clk 0:02:38]} 12. f4 {[%clk 0:02:59]}  h6 {[%clk 0:02:32]} 13. h4 {[%clk 0:02:58]}  Ng4 {[%clk 0:02:22]} 14. Qg3 {[%clk 0:02:37]}  h5 {[%clk 0:02:16]} 15. Bxe7 {[%clk 0:02:30]}  Qxe7 {[%clk 0:02:16]} 16. Rhe1 {[%clk 0:02:18]}  Rfc8 {[%clk 0:02:06]} 17. f5 {[%clk 0:02:18]}  Ne5 {[%clk 0:01:29]} 18. Nf3 {[%clk 0:02:03]}  Nc4 {[%clk 0:01:20]} 19. Nd2 {[%clk 0:02:01]}  Ne5 {[%clk 0:01:11]} 20. Nf3 {[%clk 0:01:39]}  Nc4 {[%clk 0:00:58]} 21. e5 {[%clk 0:01:38]}  d5 {[%clk 0:00:41]} 22. f6 {[%clk 0:01:36]}  Qf8 {[%clk 0:00:41]} 23. Nd2 {[%clk 0:01:11]}  g6 {[%clk 0:00:29]} 24. Nxc4 {[%clk 0:01:10]}  Rxc4 {[%clk 0:00:30]} 25. Qe3 {[%clk 0:00:56]}  Rac8 {[%clk 0:00:24]} 26. Rd4 {[%clk 0:00:52]}  Kh7 {[%clk 0:00:18]} 27. Red1 {[%clk 0:00:49]}  b5 {[%clk 0:00:17]} 28. Rxc4 {[%clk 0:00:48]}  Rxc4 {[%clk 0:00:18]} 29. Ne2 {[%clk 0:00:44]}  Qh6 {[%clk 0:00:17]} 30. Qxh6+ {[%clk 0:00:42]}  Kxh6 {[%clk 0:00:18]} 31. g3 {[%clk 0:00:43]}  g5 {[%clk 0:00:17]} 32. Rd4 {[%clk 0:00:43]}  Kg6 {[%clk 0:00:14]} 33. Rxc4 {[%clk 0:00:41]}  bxc4 {[%clk 0:00:14]} 34. Nd4 {[%clk 0:00:42]}  a5 {[%clk 0:00:12]} 35. Kd2 {[%clk 0:00:41]}  a4 {[%clk 0:00:12]} 36. Kc3 {[%clk 0:00:41]}  Be8 {[%clk 0:00:10]} 37. Kb4 {[%clk 0:00:41]}  Bd7 {[%clk 0:00:10]} 38. Kc5 {[%clk 0:00:35]}  Be8 {[%clk 0:00:10]} 39. Kd6 {[%clk 0:00:35]}  g4 {[%clk 0:00:06]} 40. Ke7 {[%clk 0:00:34]}  a3 {[%clk 0:00:06]} 41. b3 {[%clk 0:00:33]}  cxb3 {[%clk 0:00:03]} 42. cxb3 {[%clk 0:00:33]} 1-0


[Site "https://www.chess.com"]

[Event "Titled Tuesday Blitz March 28 Early 2023"]
[White "Rastbod, Ali"]
[Black "Lauridsen, Jesper Morch"]
[WhiteFideId "12567477"]
[BlackFideId "1401890"]
[WhiteElo "2211"]
[BlackElo "2251"]
[Result "1-0"]
[Round "01"]
[TimeControl "180+2"]
[Date "2023.03.28"]
[WhiteClock "0:01:29"]
[BlackClock "0:00:23"]

1. e4 {[%clk 0:02:58]}  c5 {[%clk 0:02:59]} 2. Nc3 {[%clk 0:02:55]}  Nc6 {[%clk 0:02:58]} 3. g3 {[%clk 0:02:55]}  g6 {[%clk 0:02:58]} 4. Bg2 {[%clk 0:02:56]}  Bg7 {[%clk 0:02:58]} 5. d3 {[%clk 0:02:57]}  e6 {[%clk 0:02:57]} 6. Be3 {[%clk 0:02:57]}  Nd4 {[%clk 0:02:55]} 7. Qd2 {[%clk 0:02:56]}  Ne7 {[%clk 0:02:51]} 8. Nd1 {[%clk 0:02:57]}  d5 {[%clk 0:02:47]} 9. c3 {[%clk 0:02:51]}  dxe4 {[%clk 0:02:33]} 10. dxe4 {[%clk 0:02:28]}  h6 {[%clk 0:02:28]} 11. f4 {[%clk 0:02:15]}  Nec6 {[%clk 0:01:39]} 12. cxd4 {[%clk 0:02:13]}  cxd4 {[%clk 0:01:37]} 13. Bf2 {[%clk 0:02:12]}  Bf8 {[%clk 0:01:34]} 14. a3 {[%clk 0:02:05]}  Na5 {[%clk 0:01:34]} 15. Qxd4 {[%clk 0:02:00]}  Nb3 {[%clk 0:01:06]} 16. Qa4+ {[%clk 0:01:54]}  Bd7 {[%clk 0:01:00]} 17. Qxb3 {[%clk 0:01:55]}  Rc8 {[%clk 0:00:54]} 18. Bd4 {[%clk 0:01:46]}  e5 {[%clk 0:00:48]} 19. Bxe5 {[%clk 0:01:45]}  f6 {[%clk 0:00:27]} 20. Bc3 {[%clk 0:01:36]}  Bc5 {[%clk 0:00:27]} 21. Nf3 {[%clk 0:01:34]}  Rh7 {[%clk 0:00:23]} 22. Qg8+ {[%clk 0:01:29]} 1-0


[Site "https://www.chess.com"]

[Event "Titled Tuesday Blitz March 28 Early 2023"]
[White "Floresvillar Gonzalez, Luis Migu"]
[Black "Domingo Nunez, Alejandro"]
[WhiteFideId "5100542"]
[BlackFideId "22245561"]
[WhiteElo "2040"]
[BlackElo "2230"]
[Result "0-1"]
[Round "01"]
[TimeControl "180+2"]
[Date "2023.03.28"]
[WhiteClock "0:00:09"]
[BlackClock "0:00:59"]

1. d4 {[%clk 0:02:58]}  g6 {[%clk 0:03:00]} 2. c3 {[%clk 0:02:57]}  Bg7 {[%clk 0:03:01]} 3. Nf3 {[%clk 0:02:55]}  Nf6 {[%clk 0:03:00]} 4. h4 {[%clk 0:02:53]}  O-O {[%clk 0:02:58]} 5. Bg5 {[%clk 0:02:49]}  b6 {[%clk 0:02:58]} 6. Nbd2 {[%clk 0:02:48]}  Bb7 {[%clk 0:02:58]} 7. e3 {[%clk 0:02:46]}  d6 {[%clk 0:02:58]} 8. Be2 {[%clk 0:02:45]}  Nbd7 {[%clk 0:02:58]} 9. b4 {[%clk 0:02:42]}  a5 {[%clk 0:02:57]} 10. a3 {[%clk 0:02:41]}  e5 {[%clk 0:02:56]} 11. e4 {[%clk 0:02:19]}  Qe8 {[%clk 0:02:54]} 12. d5 {[%clk 0:02:15]}  Nh5 {[%clk 0:02:51]} 13. Nh2 {[%clk 0:02:01]}  f6 {[%clk 0:02:45]} 14. Bxh5 {[%clk 0:01:53]}  fxg5 {[%clk 0:02:44]} 15. Bg4 {[%clk 0:01:52]}  gxh4 {[%clk 0:02:42]} 16. Be6+ {[%clk 0:01:51]}  Kh8 {[%clk 0:02:41]} 17. Qg4 {[%clk 0:01:36]}  Nf6 {[%clk 0:02:10]} 18. Qxh4 {[%clk 0:01:34]}  Nh5 {[%clk 0:02:03]} 19. g3 {[%clk 0:01:24]}  axb4 {[%clk 0:01:59]} 20. cxb4 {[%clk 0:01:22]}  Qd8 {[%clk 0:01:51]} 21. Qxd8 {[%clk 0:01:12]}  Rfxd8 {[%clk 0:01:49]} 22. O-O {[%clk 0:01:12]}  c5 {[%clk 0:01:40]} 23. bxc5 {[%clk 0:01:04]}  bxc5 {[%clk 0:01:41]} 24. Rfb1 {[%clk 0:01:03]}  Ba6 {[%clk 0:01:41]} 25. Rb6 {[%clk 0:00:58]}  Bh6 {[%clk 0:01:40]} 26. Ndf1 {[%clk 0:00:35]}  Bd3 {[%clk 0:01:33]} 27. Ng4 {[%clk 0:00:24]}  Bg5 {[%clk 0:01:25]} 28. f3 {[%clk 0:00:20]}  c4 {[%clk 0:01:02]} 29. Nge3 {[%clk 0:00:19]}  Nxg3 {[%clk 0:00:59]} 30. Nxg3 {[%clk 0:00:12]}  Bxe3+ {[%clk 0:00:59]} 31. Kg2 {[%clk 0:00:13]}  Bxb6 {[%clk 0:01:00]} 32. Rh1 {[%clk 0:00:09]}  Rxa3 {[%clk 0:00:59]} 0-1


[Site "https://www.chess.com"]

[Event "Titled Tuesday Blitz March 28 Early 2023"]
[White "Rosen, Eric"]
[Black "Georg, Heinz"]
[WhiteFideId "2032562"]
[BlackFideId "4607295"]
[WhiteElo "2331"]
[BlackElo "2247"]
[Result "1-0"]
[Round "01"]
[TimeControl "180+2"]
[Date "2023.03.28"]
[WhiteClock "0:00:21"]
[BlackClock "0:00:15"]

1. d4 {[%clk 0:02:56]}  f5 {[%clk 0:02:59]} 2. Bf4 {[%clk 0:02:55]}  Nf6 {[%clk 0:02:59]} 3. e3 {[%clk 0:02:55]}  e6 {[%clk 0:02:59]} 4. Nf3 {[%clk 0:02:55]}  b6 {[%clk 0:02:59]} 5. c4 {[%clk 0:02:42]}  Bb7 {[%clk 0:02:59]} 6. a3 {[%clk 0:02:43]}  Be7 {[%clk 0:02:58]} 7. Nc3 {[%clk 0:02:43]}  O-O {[%clk 0:02:57]} 8. h3 {[%clk 0:02:43]}  h6 {[%clk 0:02:47]} 9. Be2 {[%clk 0:02:43]}  d6 {[%clk 0:02:47]} 10. Qb3 {[%clk 0:02:35]}  Qe8 {[%clk 0:02:35]} 11. c5 {[%clk 0:02:34]}  Qf7 {[%clk 0:02:27]} 12. Bc4 {[%clk 0:02:30]}  d5 {[%clk 0:02:25]} 13. Be2 {[%clk 0:02:31]}  Nc6 {[%clk 0:02:11]} 14. Nb5 {[%clk 0:02:20]}  Na5 {[%clk 0:02:06]} 15. Qc2 {[%clk 0:02:15]}  c6 {[%clk 0:02:01]} 16. Nd6 {[%clk 0:02:13]}  Bxd6 {[%clk 0:02:01]} 17. Bxd6 {[%clk 0:02:14]}  Rfc8 {[%clk 0:01:52]} 18. Ne5 {[%clk 0:02:10]}  Qe8 {[%clk 0:01:50]} 19. b4 {[%clk 0:02:10]}  Nc4 {[%clk 0:01:46]} 20. Nxc4 {[%clk 0:02:03]}  dxc4 {[%clk 0:01:46]} 21. Bxc4 {[%clk 0:02:04]}  a5 {[%clk 0:01:40]} 22. Qxf5 {[%clk 0:01:50]}  Nd5 {[%clk 0:01:35]} 23. Qb1 {[%clk 0:01:49]}  axb4 {[%clk 0:01:34]} 24. axb4 {[%clk 0:01:39]}  Rxa1 {[%clk 0:01:27]} 25. Qxa1 {[%clk 0:01:40]}  Nxb4 {[%clk 0:01:28]} 26. O-O {[%clk 0:01:40]}  b5 {[%clk 0:01:21]} 27. Bb3 {[%clk 0:01:36]}  Ra8 {[%clk 0:01:20]} 28. Qb1 {[%clk 0:01:36]}  Nd5 {[%clk 0:01:15]} 29. e4 {[%clk 0:01:30]}  Nc3 {[%clk 0:01:13]} 30. Qd3 {[%clk 0:01:26]}  b4 {[%clk 0:01:13]} 31. Bc4 {[%clk 0:01:08]}  Ra3 {[%clk 0:01:10]} 32. Kh1 {[%clk 0:00:53]}  Kh8 {[%clk 0:01:09]} 33. Be5 {[%clk 0:00:49]}  Qg6 {[%clk 0:01:07]} 34. Qg3 {[%clk 0:00:41]}  Qxg3 {[%clk 0:00:53]} 35. fxg3 {[%clk 0:00:41]}  Nxe4 {[%clk 0:00:53]} 36. Rf8+ {[%clk 0:00:37]}  Kh7 {[%clk 0:00:53]} 37. Bxe6 {[%clk 0:00:38]}  Nxg3+ {[%clk 0:00:48]} 38. Kh2 {[%clk 0:00:29]}  b3 {[%clk 0:00:25]} 39. Bxg3 {[%clk 0:00:29]}  b2 {[%clk 0:00:24]} 40. Bf5+ {[%clk 0:00:29]}  g6 {[%clk 0:00:24]} 41. Be5 {[%clk 0:00:30]}  gxf5 {[%clk 0:00:23]} 42. Rf7+ {[%clk 0:00:30]}  Kg6 {[%clk 0:00:23]} 43. Rxb7 {[%clk 0:00:30]}  Ra2 {[%clk 0:00:22]} 44. d5 {[%clk 0:00:29]}  cxd5 {[%clk 0:00:19]} 45. Rxb2 {[%clk 0:00:28]}  Ra5 {[%clk 0:00:18]} 46. Rc2 {[%clk 0:00:21]}  f4 {[%clk 0:00:15]} 47. c6 {[%clk 0:00:20]}  Ra8 {[%clk 0:00:15]} 48. Bxf4 {[%clk 0:00:20]}  Rc8 {[%clk 0:00:15]} 49. c7 {[%clk 0:00:20]}  Kf5 {[%clk 0:00:15]} 50. Bg3 {[%clk 0:00:21]}  Ke4 {[%clk 0:00:15]} 51. Rb2 {[%clk 0:00:20]}  d4 {[%clk 0:00:15]} 52. Rb8 {[%clk 0:00:21]}  Rxc7 {[%clk 0:00:14]} 53. Bxc7 {[%clk 0:00:21]}  d3 {[%clk 0:00:15]} 54. Ba5 {[%clk 0:00:21]}  d2 {[%clk 0:00:15]} 55. Bxd2 {[%clk 0:00:21]} 1-0


[Site "https://www.chess.com"]

[Event "Titled Tuesday Blitz March 28 Early 2023"]
[White "Rodriguez Santiago, Jaime"]
[Black "Priyanka Nutakki"]
[WhiteFideId "3100898"]
[BlackFideId "25049615"]
[WhiteElo "2025"]
[BlackElo "2256"]
[Result "0-1"]
[Round "01"]
[TimeControl "180+2"]
[Date "2023.03.28"]
[WhiteClock "0:00:54"]
[BlackClock "0:01:12"]

1. c4 {[%clk 0:02:59]}  e6 {[%clk 0:02:59]} 2. Nf3 {[%clk 0:02:58]}  d5 {[%clk 0:03:00]} 3. g3 {[%clk 0:02:58]}  Nf6 {[%clk 0:03:00]} 4. Bg2 {[%clk 0:02:58]}  d4 {[%clk 0:03:00]} 5. O-O {[%clk 0:02:58]}  c5 {[%clk 0:03:01]} 6. b3 {[%clk 0:02:58]}  Nc6 {[%clk 0:03:01]} 7. e3 {[%clk 0:02:58]}  Bd6 {[%clk 0:03:00]} 8. exd4 {[%clk 0:02:58]}  cxd4 {[%clk 0:03:01]} 9. d3 {[%clk 0:02:58]}  O-O {[%clk 0:03:01]} 10. Re1 {[%clk 0:02:57]}  e5 {[%clk 0:03:01]} 11. Nbd2 {[%clk 0:02:47]}  Bf5 {[%clk 0:02:58]} 12. Ne4 {[%clk 0:02:41]}  Nxe4 {[%clk 0:02:34]} 13. dxe4 {[%clk 0:02:41]}  Bg4 {[%clk 0:02:24]} 14. h3 {[%clk 0:02:38]}  Bh5 {[%clk 0:02:24]} 15. a3 {[%clk 0:02:36]}  a5 {[%clk 0:02:24]} 16. Qd3 {[%clk 0:02:35]}  Qe7 {[%clk 0:02:15]} 17. Nh4 {[%clk 0:02:32]}  Bg6 {[%clk 0:02:11]} 18. Bb2 {[%clk 0:02:17]}  Rac8 {[%clk 0:01:59]} 19. Rad1 {[%clk 0:02:15]}  Nb8 {[%clk 0:01:58]} 20. Nf5 {[%clk 0:02:11]}  Qd7 {[%clk 0:01:53]} 21. Nxd6 {[%clk 0:01:57]}  Qxd6 {[%clk 0:01:54]} 22. Qd2 {[%clk 0:01:52]}  b6 {[%clk 0:01:49]} 23. f4 {[%clk 0:01:52]}  f6 {[%clk 0:01:48]} 24. fxe5 {[%clk 0:01:35]}  fxe5 {[%clk 0:01:49]} 25. Rf1 {[%clk 0:01:35]}  Nd7 {[%clk 0:01:47]} 26. Qg5 {[%clk 0:01:27]}  Nc5 {[%clk 0:01:42]} 27. h4 {[%clk 0:01:02]}  Nxe4 {[%clk 0:01:29]} 28. Qg4 {[%clk 0:00:56]}  h5 {[%clk 0:01:13]} 29. Qe2 {[%clk 0:00:54]}  Nxg3 {[%clk 0:01:12]} 0-1


[Site "https://www.chess.com"]